[Event "RUS-ch Blitz Women 2018"]
[Site "Sochi"]
[Date "2018.10.07"]
[Round "18"]
[White "Maltsevskaya, Aleksandra"]
[Black "Voit, Daria"]
[Result "1-0"]
[ECO "A30"]
[WhiteElo "2290"]
[BlackElo "2352"]
[Annotator "NA"]
[PlyCount "147"]
[EventDate "2018.10.07"]
[EventType "swiss"]
[EventCountry "RUS"]
[SourceTitle "playchess.com"]
[Source "ChessBase"]
[SourceQuality "1"]
[TimeControl "180+2"]

1. c4 {[%emt 0:00:00]} c5 {[%emt 0:00:00]} 2. Nf3 {[%emt 0:00:02]} Nc6 {[%emt 0:00:00]} 3. g3 {[%emt 0:00:01]} e5 {[%emt 0:00:05]} 4. d3 {[%emt 0:00:01]} d6 {[%emt 0:00:01]} 5. Bg2 {[%emt 0:00:01]} g6 {[%emt 0:00:01]} 6. O-O {[%emt 0:00:03]} Bg7 {[%emt 0:00:02]} 7. Nc3 {[%emt 0:00:02]} Nge7 {[%emt 0:00:01]} 8. a3 {[%emt 0:00:06]} O-O {[%emt 0:00:04]} 9. b4 {[%emt 0:00:06]} cxb4 {[%emt 0:00:01]} 10. axb4 {[%emt 0:00:01]} Nxb4 {[%emt 0:00:01]} 11. Ba3 {[%emt 0:00:01]} Nbc6 {[%emt 0:00:06]} 12. Nb5 {[%emt 0:00:01]} Be6 {[%emt 0:00:08]} 13. Nxd6 {[%emt 0:00:05]} Qd7 {[%emt 0:00:00]} 14. Ne4 {[%emt 0:00:18]} b6 {[%emt 0:00:18]} 15. Rb1 {[%emt 0:00:01]} Bh3 {[%emt 0:00:12]} 16. Bxh3 {[%emt 0:00:15]} Qxh3 {[%emt 0:00:02]} 17. c5 {[%emt 0:00:03]} bxc5 {[%emt 0:00:04]} 18. Bxc5 {[%emt 0:00:05]} Qd7 {[%emt 0:00:08]} 19. Qa4 {[%emt 0:00:04]} Nd5 {[%emt 0:00:08]} 20. Bxf8 {[%emt 0:00:05]} Bxf8 {[%emt 0:00:02]} 21. Rfc1 {[%emt 0:00:02]} Rc8 {[%emt 0:00:06]} 22. Rc2 {[%emt 0:00:18]} f5 {[%emt 0:00:02]} 23. Nc5 {[%emt 0:00:04]} Qd6 {[%emt 0:00:13]} 24. Rbc1 {[%emt 0:00:07]} Ncb4 {[%emt 0:00:14]} 25. Rc4 {[%emt 0:00:43]} Nb6 {[%emt 0:00:21]} 26. Qxb4 {[%emt 0:00:19]} Nxc4 {[%emt 0:00:01]} 27. Qxc4+ {[%emt 0:00:02]} Kh8 {[%emt 0:00:07]} 28. Ng5 {[%emt 0:00:02]} Qxc5 {[%emt 0:00:10]} 29. Qxc5 {[%emt 0:00:03]} Rxc5 {[%emt 0:00:02]} 30. Rb1 {[%emt 0:00:01]} h6 {[%emt 0:00:53]} 31. Ne6 {[%emt 0:00:15]} Rc8 {[%emt 0:00:01]} 32. Rb7 {[%emt 0:00:03]} a5 {[%emt 0:00:10]} 33. Ra7 {[%emt 0:00:01]} Bb4 {[%emt 0:00:01]} 34. e3 {[%emt 0:00:30]} Rc6 {[%emt 0:00:03]} 35. Nd8 {[%emt 0:00:04]} Rc3 {[%emt 0:00:06]} 36. Nf7+ {[%emt 0:00:06]} Kg8 {[%emt 0:00:02]} 37. Nxe5 {[%emt 0:00:01]} g5 {[%emt 0:00:05]} 38. d4 {[%emt 0:00:01]} Rc1+ {[%emt 0:00:05]} 39. Kg2 {[%emt 0:00:01]} Rc2 {[%emt 0:00:01]} 40. d5 {[%emt 0:00:08]} Be1 {[%emt 0:00:03]} 41. Nd3 {[%emt 0:00:01]} Bc3 {[%emt 0:00:02]} 42. d6 {[%emt 0:00:02]} Rd2 {[%emt 0:00:02]} 43. d7 {[%emt 0:00:07]} Rxd3 {[%emt 0:00:05]} 44. Ra8+ {[%emt 0:00:01]} Kf7 {[%emt 0:00:01]} 45. d8=Q {[%emt 0:00:01]} Rxd8 {[%emt 0:00:01]} 46. Rxd8 {[%emt 0:00:00]} h5 {[%emt 0:00:04]} 47. Ra8 {[%emt 0:00:02]} Kf6 {[%emt 0:00:02]} 48. Kf3 {[%emt 0:00:02]} Ke5 {[%emt 0:00:01]} 49. Ke2 {[%emt 0:00:01]} g4 {[%emt 0:00:03]} 50. Kd3 {[%emt 0:00:02]} Be1 {[%emt 0:00:02]} 51. Re8+ {[%emt 0:00:06]} Kf6 {[%emt 0:00:02]} 52. Ra8 {[%emt 0:00:01]} Kg5 {[%emt 0:00:05]} 53. Rb8 {[%emt 0:00:02]} Kf6 {[%emt 0:00:03]} 54. Ke2 {[%emt 0:00:02]} Bb4 {[%emt 0:00:01]} 55. Rb5 {[%emt 0:00:01]} Kg6 {[%emt 0:00:01]} 56. f3 {[%emt 0:00:01]} Kf6 {[%emt 0:00:02]} 57. e4 {[%emt 0:00:02]} gxf3+ {[%emt 0:00:01]} 58. Kxf3 {[%emt 0:00:01]} fxe4+ {[%emt 0:00:01]} 59. Kxe4 {[%emt 0:00:00]} Kg6 {[%emt 0:00:01]} 60. h3 {[%emt 0:00:02]} Be1 {[%emt 0:00:02]} 61. Kf3 {[%emt 0:00:02]} Bb4 {[%emt 0:00:01]} 62. Rb6+ {[%emt 0:00:04]} Kf5 {[%emt 0:00:04]} 63. h4 {[%emt 0:00:05]} Bc3 {[%emt 0:00:01]} 64. Rh6 {[%emt 0:00:03]} a4 {[%emt 0:00:03]} 65. Rxh5+ {[%emt 0:00:01]} Kg6 {[%emt 0:00:01]} 66. Rc5 {[%emt 0:00:02]} Be1 {[%emt 0:00:04]} 67. Rc6+ {[%emt 0:00:01]} Kg7 {[%emt 0:00:02]} 68. Ra6 {[%emt 0:00:01]} Kf7 {[%emt 0:00:02]} 69. h5 {[%emt 0:00:02]} Kg7 {[%emt 0:00:01]} 70. g4 {[%emt 0:00:01]} Bd2 {[%emt 0:00:02]} 71. Ke4 {[%emt 0:00:02]} Kf7 {[%emt 0:00:01]} 72. Kf5 {[%emt 0:00:01]} Kg7 {[%emt 0:00:01]} 73. g5 {[%emt 0:00:01]} Bc3 {[%emt 0:00:02]} 74. Ra7+ {[%emt 0:00:02]} 1-0

[Event "RUS-ch Blitz Women 2018"]
[Site "Sochi"]
[Date "2018.10.07"]
[Round "18"]
[White "Potapova, Margarita"]
[Black "Charochkina, Daria"]
[Result "1/2-1/2"]
[ECO "A83"]
[WhiteElo "2284"]
[BlackElo "2344"]
[Annotator "NA"]
[PlyCount "92"]
[EventDate "2018.10.07"]
[EventType "swiss"]
[EventCountry "RUS"]
[SourceTitle "playchess.com"]
[Source "ChessBase"]
[SourceQuality "1"]
[TimeControl "180+2"]

1. d4 {[%emt 0:00:00]} f5 {[%emt 0:00:01]} 2. e4 {[%emt 0:00:00]} fxe4 {[%emt 0:00:01]} 3. Nc3 {[%emt 0:00:01]} Nf6 {[%emt 0:00:01]} 4. Bg5 {[%emt 0:00:01]} Nc6 {[%emt 0:00:00]} 5. d5 {[%emt 0:00:01]} Ne5 6. Qe2 Nf7 {[%emt 0:00:05]} 7. h4 {[%emt 0:00:01]} d6 {[%emt 0:00:09]} 8. O-O-O {[%emt 0:00:09]} Bd7 {[%emt 0:00:40]} 9. Nxe4 {[%emt 0:00:10]} Nxe4 {[%emt 0:00:13]} 10. Qxe4 {[%emt 0:00:01]} c6 {[%emt 0:00:02]} 11. Bc4 {[%emt 0:00:24]} Ne5 {[%emt 0:00:01]} 12. Bb3 {[%emt 0:00:03]} Qc7 {[%emt 0:00:07]} 13. f4 {[%emt 0:00:04]} Ng4 {[%emt 0:00:40]} 14. Nh3 {[%emt 0:00:01]} c5 {[%emt 0:00:24]} 15. Rhe1 {[%emt 0:00:13]} Nf6 {[%emt 0:00:01]} 16. Bxf6 {[%emt 0:00:04]} gxf6 {[%emt 0:00:01]} 17. f5 {[%emt 0:00:12]} O-O-O {[%emt 0:00:11]} 18. Nf4 {[%emt 0:00:03]} Rg8 {[%emt 0:00:14]} 19. Ne6 {[%emt 0:00:05]} Bh6+ {[%emt 0:00:06]} 20. Kb1 {[%emt 0:00:01]} Bxe6 {[%emt 0:00:07]} 21. Qxe6+ {[%emt 0:00:01]} Qd7 {[%emt 0:00:09]} 22. Qxe7 {[%emt 0:00:09]} Qxf5 {[%emt 0:00:05]} 23. Rf1 {[%emt 0:00:21]} Qe5 {[%emt 0:00:01]} 24. Qe6+ {[%emt 0:00:05]} Kb8 {[%emt 0:00:04]} 25. Qxf6 {[%emt 0:00:05]} Qxf6 {[%emt 0:00:09]} 26. Rxf6 {[%emt 0:00:01]} Be3 {[%emt 0:00:00]} 27. Re6 {[%emt 0:00:06]} Bd4 {[%emt 0:00:08]} 28. c3 {[%emt 0:00:02]} Be5 {[%emt 0:00:01]} 29. Re7 {[%emt 0:00:09]} Rxg2 {[%emt 0:00:08]} 30. Rxh7 Rdg8 31. Bc2 {[%emt 0:00:16]} Rh2 {[%emt 0:00:03]} 32. Rf1 {[%emt 0:00:16]} a6 {[%emt 0:00:07]} 33. a4 {[%emt 0:00:08]} Rgg2 {[%emt 0:00:02]} 34. Rf8+ {[%emt 0:00:03]} Ka7 {[%emt 0:00:00]} 35. Rff7 {[%emt 0:00:09]} Rxc2 {[%emt 0:00:06]} 36. Rxb7+ {[%emt 0:00:02]} Ka8 {[%emt 0:00:00]} 37. Ra7+ {[%emt 0:00:02]} Kb8 {[%emt 0:00:01]} 38. Rab7+ {[%emt 0:00:01]} Ka8 {[%emt 0:00:00]} 39. Ra7+ {[%emt 0:00:01]} Kb8 {[%emt 0:00:03]} 40. Rab7+ {[%emt 0:00:01]} Kc8 {[%emt 0:00:03]} 41. Rhc7+ {[%emt 0:00:07]} Kd8 {[%emt 0:00:01]} 42. Rh7 {[%emt 0:00:02]} Kc8 {[%emt 0:00:01]} 43. Rhc7+ {[%emt 0:00:01]} Kd8 {[%emt 0:00:00]} 44. Rh7 {[%emt 0:00:01]} Kc8 {[%emt 0:00:04]} 45. Rhc7+ {[%emt 0:00:01]} Kd8 {[%emt 0:00:01]} 46. Rh7 {[%emt 0:00:03]} Kc8 {[%emt 0:00:04]} 1/2-1/2

[Event "RUS-ch Blitz Women 2018"]
[Site "Sochi"]
[Date "2018.10.07"]
[Round "18"]
[White "Lysenko, Margarita"]
[Black "Goltseva, Ekaterina"]
[Result "1-0"]
[ECO "A30"]
[WhiteElo "2122"]
[BlackElo "2169"]
[Annotator "NA"]
[PlyCount "87"]
[EventDate "2018.10.07"]
[EventType "swiss"]
[EventCountry "RUS"]
[SourceTitle "playchess.com"]
[Source "ChessBase"]
[SourceQuality "1"]
[TimeControl "180+2"]

1. c4 {[%emt 0:00:00]} c5 {[%emt 0:00:00]} 2. g3 {[%emt 0:00:03]} Nf6 {[%emt 0:00:00]} 3. Bg2 {[%emt 0:00:01]} d5 {[%emt 0:00:00]} 4. cxd5 Nxd5 5. Nf3 {[%emt 0:00:04]} Nc6 {[%emt 0:00:01]} 6. O-O {[%emt 0:00:02]} e5 {[%emt 0:00:01]} 7. Nc3 {[%emt 0:00:10]} Nc7 {[%emt 0:00:01]} 8. d3 {[%emt 0:00:07]} Be7 {[%emt 0:00:01]} 9. Ne1 {[%emt 0:00:23]} O-O {[%emt 0:00:04]} 10. Nc2 {[%emt 0:00:00]} Be6 {[%emt 0:00:12]} 11. Ne3 {[%emt 0:00:02]} Nd4 {[%emt 0:00:08]} 12. Bxb7 {[%emt 0:00:07]} Rb8 {[%emt 0:00:01]} 13. Bg2 {[%emt 0:00:04]} f5 {[%emt 0:00:04]} 14. b3 {[%emt 0:00:28]} Bf6 {[%emt 0:00:36]} 15. Bb2 {[%emt 0:00:01]} Qe7 {[%emt 0:00:03]} 16. Rc1 {[%emt 0:00:03]} Qf7 {[%emt 0:00:12]} 17. Ba3 {[%emt 0:00:19]} f4 {[%emt 0:00:11]} 18. Nc4 {[%emt 0:00:06]} Na6 {[%emt 0:00:26]} 19. Ne4 {[%emt 0:00:12]} Qh5 {[%emt 0:00:01]} 20. f3 {[%emt 0:00:51]} fxg3 {[%emt 0:00:13]} 21. hxg3 {[%emt 0:00:02]} Bg5 {[%emt 0:00:22]} 22. e3 {[%emt 0:00:24]} Nc6 {[%emt 0:00:12]} 23. f4 {[%emt 0:00:04]} Bg4 {[%emt 0:00:26]} 24. Bf3 {[%emt 0:00:02]} Bxf3 {[%emt 0:00:05]} 25. Qxf3 {[%emt 0:00:01]} Qxf3 {[%emt 0:00:02]} 26. Rxf3 {[%emt 0:00:02]} Be7 {[%emt 0:00:04]} 27. Rcf1 {[%emt 0:00:05]} exf4 {[%emt 0:00:03]} 28. Rxf4 {[%emt 0:00:04]} Rfd8 {[%emt 0:00:03]} 29. Nf2 {[%emt 0:00:05]} Nab4 {[%emt 0:00:07]} 30. Bxb4 {[%emt 0:00:02]} Nxb4 {[%emt 0:00:01]} 31. Re4 {[%emt 0:00:01]} Bf6 {[%emt 0:00:02]} 32. Rd1 {[%emt 0:00:06]} Rb7 {[%emt 0:00:04]} 33. Rf4 {[%emt 0:00:02]} Rbd7 {[%emt 0:00:02]} 34. Ng4 {[%emt 0:00:01]} Nxd3 {[%emt 0:00:14]} 35. Nxf6+ {[%emt 0:00:01]} gxf6 {[%emt 0:00:01]} 36. Rxf6 {[%emt 0:00:01]} Kg7 {[%emt 0:00:02]} 37. Rc6 {[%emt 0:00:03]} Rf7 {[%emt 0:00:02]} 38. Ra6 {[%emt 0:00:02]} Rf3 {[%emt 0:00:03]} 39. Kg2 {[%emt 0:00:03]} Rf2+ {[%emt 0:00:00]} 40. Kg1 {[%emt 0:00:01]} Rf3 {[%emt 0:00:03]} 41. Kg2 {[%emt 0:00:01]} Rf2+ {[%emt 0:00:01]} 42. Kg1 {[%emt 0:00:01]} Rd7 {[%emt 0:00:04]} 43. Rxd3 {[%emt 0:00:02]} Rxd3 {[%emt 0:00:02]} 44. Kxf2 {[%emt 0:00:01]} 1-0

[Event "RUS-ch Blitz Women 2018"]
[Site "Sochi"]
[Date "2018.10.07"]
[Round "18"]
[White "Illina, Natalia"]
[Black "Nebolsina, Vera"]
[Result "1/2-1/2"]
[ECO "C42"]
[WhiteElo "1879"]
[BlackElo "2220"]
[Annotator "NA"]
[PlyCount "64"]
[EventDate "2018.10.07"]
[EventType "swiss"]
[EventCountry "RUS"]
[SourceTitle "playchess.com"]
[Source "ChessBase"]
[SourceQuality "1"]
[TimeControl "180+2"]

1. e4 {[%emt 0:00:00]} e5 {[%emt 0:00:00]} 2. Nf3 {[%emt 0:00:00]} Nf6 {[%emt 0:00:00]} 3. Nxe5 {[%emt 0:00:00]} d6 {[%emt 0:00:01]} 4. Nc4 {[%emt 0:00:01]} Nxe4 {[%emt 0:00:02]} 5. d4 {[%emt 0:00:01]} Be7 {[%emt 0:00:14]} 6. Bd3 {[%emt 0:00:13]} d5 {[%emt 0:00:29]} 7. Ne3 {[%emt 0:00:01]} O-O {[%emt 0:00:11]} 8. O-O {[%emt 0:00:05]} c6 {[%emt 0:00:05]} 9. c4 {[%emt 0:00:02]} Be6 {[%emt 0:00:08]} 10. b3 {[%emt 0:00:02]} Nd7 {[%emt 0:00:10]} 11. Nd2 {[%emt 0:00:14]} f5 {[%emt 0:00:07]} 12. Re1 {[%emt 0:00:41]} Bf6 {[%emt 0:00:14]} 13. Bb2 {[%emt 0:00:03]} f4 {[%emt 0:00:18]} 14. Nef1 {[%emt 0:00:03]} Nxd2 {[%emt 0:00:15]} 15. Rxe6 {[%emt 0:00:12]} Nxf1 {[%emt 0:00:02]} 16. Qxf1 {[%emt 0:00:14]} Nc5 {[%emt 0:00:04]} 17. Rxf6 {[%emt 0:00:06]} Qxf6 {[%emt 0:00:02]} 18. Ba3 {[%emt 0:00:39]} Qxd4 {[%emt 0:00:17]} 19. Rd1 {[%emt 0:00:01]} Nxd3 {[%emt 0:00:01]} 20. Bxf8 {[%emt 0:00:05]} Rxf8 {[%emt 0:00:10]} 21. Rxd3 {[%emt 0:00:03]} Qe4 {[%emt 0:00:05]} 22. cxd5 {[%emt 0:00:12]} cxd5 {[%emt 0:00:06]} 23. Qd1 {[%emt 0:00:09]} f3 {[%emt 0:00:05]} 24. gxf3 {[%emt 0:00:31]} Qg6+ {[%emt 0:00:06]} 25. Kh1 {[%emt 0:00:03]} Qf6 {[%emt 0:00:05]} 26. Rxd5 {[%emt 0:00:03]} Qxf3+ {[%emt 0:00:02]} 27. Qxf3 {[%emt 0:00:01]} Rxf3 {[%emt 0:00:01]} 28. Rd8+ {[%emt 0:00:03]} Rf8 {[%emt 0:00:04]} 29. Rd7 {[%emt 0:00:04]} Rf7 {[%emt 0:00:01]} 30. Rd8+ {[%emt 0:00:01]} Rf8 {[%emt 0:00:01]} 31. Rd7 {[%emt 0:00:01]} Rf7 {[%emt 0:00:00]} 32. Rd8+ {[%emt 0:00:00]} Rf8 {[%emt 0:00:01]} 1/2-1/2

[Event "RUS-ch Blitz Women 2018"]
[Site "Sochi"]
[Date "2018.10.07"]
[Round "19"]
[White "Bodnaruk, Anastasia"]
[Black "Ambartsumova, Karina"]
[Result "1-0"]
[ECO "C52"]
[WhiteElo "2423"]
[BlackElo "2379"]
[Annotator "NA"]
[PlyCount "75"]
[EventDate "2018.10.07"]
[EventType "swiss"]
[EventCountry "RUS"]
[SourceTitle "playchess.com"]
[Source "ChessBase"]
[SourceQuality "1"]
[TimeControl "180+2"]

1. e4 {[%emt 0:00:00]} e5 {[%emt 0:00:00]} 2. Nf3 {[%emt 0:00:00]} Nc6 {[%emt 0:00:00]} 3. Bc4 {[%emt 0:00:01]} Bc5 {[%emt 0:00:02]} 4. b4 {[%emt 0:00:02]} Bxb4 {[%emt 0:00:23]} 5. c3 {[%emt 0:00:02]} Ba5 {[%emt 0:00:12]} 6. d4 $11 {[%emt 0:00:02]} exd4 {[%emt 0:00:16]} 7. O-O {[%emt 0:00:02]} d6 {[%emt 0:00:31]} 8. Qb3 {[%emt 0:00:13]} Qe7 {[%emt 0:00:21]} 9. cxd4 {[%emt 0:00:05]} Nf6 {[%emt 0:00:21]} 10. e5 {[%emt 0:00:22]} dxe5 {[%emt 0:00:19]} 11. Ba3 {[%emt 0:00:16]} Bb4 {[%emt 0:00:03]} 12. dxe5 {[%emt 0:00:13]} Ne4 {[%emt 0:00:18]} 13. Bxb4 {[%emt 0:00:42]} Qxb4 {[%emt 0:00:06]} 14. Bxf7+ {[%emt 0:00:17]} Ke7 {[%emt 0:00:01]} 15. Bd5 {[%emt 0:00:07]} Qxb3 {[%emt 0:00:11]} 16. axb3 {[%emt 0:00:01]} Nc5 {[%emt 0:00:02]} 17. Nc3 {[%emt 0:00:22]} Be6 {[%emt 0:00:02]} 18. Bxc6 {[%emt 0:00:15]} bxc6 {[%emt 0:00:01]} 19. b4 {[%emt 0:00:00]} Nb3 {[%emt 0:00:12]} 20. Ra4 {[%emt 0:00:09]} Rhd8 {[%emt 0:00:06]} 21. Ng5 {[%emt 0:00:07]} Bc4 {[%emt 0:00:03]} 22. Re1 {[%emt 0:00:02]} h6 {[%emt 0:00:02]} 23. Nge4 {[%emt 0:00:02]} a6 {[%emt 0:00:05]} 24. f4 {[%emt 0:00:05]} Nd4 {[%emt 0:00:04]} 25. Nc5 {[%emt 0:00:07]} Bb5 {[%emt 0:00:05]} 26. Ra2 {[%emt 0:00:03]} Bc4 {[%emt 0:00:01]} 27. Rf2 {[%emt 0:00:05]} Nb5 {[%emt 0:00:02]} 28. N3e4 {[%emt 0:00:06]} a5 {[%emt 0:00:02]} 29. bxa5 {[%emt 0:00:02]} Rd4 {[%emt 0:00:02]} 30. a6 Na7 {[%emt 0:00:04]} 31. f5 {[%emt 0:00:03]} Nc8 {[%emt 0:00:01]} 32. f6+ {[%emt 0:00:01]} gxf6 {[%emt 0:00:01]} 33. exf6+ {[%emt 0:00:01]} Kf7 {[%emt 0:00:01]} 34. Rf4 {[%emt 0:00:03]} Rd5 {[%emt 0:00:04]} 35. Rg4 {[%emt 0:00:03]} Nd6 {[%emt 0:00:02]} 36. Rg7+ {[%emt 0:00:02]} Kf8 {[%emt 0:00:02]} 37. Ne6+ {[%emt 0:00:01]} Ke8 {[%emt 0:00:01]} 38. Re7# {[%emt 0:00:01]} 1-0

[Event "RUS-ch Blitz Women 2018"]
[Site "Sochi"]
[Date "2018.10.07"]
[Round "19"]
[White "Shuvalova, Polina"]
[Black "Lysenko, Margarita"]
[Result "0-1"]
[ECO "B04"]
[WhiteElo "2421"]
[BlackElo "2122"]
[Annotator "NA"]
[PlyCount "164"]
[EventDate "2018.10.07"]
[EventType "swiss"]
[EventCountry "RUS"]
[SourceTitle "playchess.com"]
[Source "ChessBase"]
[SourceQuality "1"]
[TimeControl "180+2"]

1. e4 {[%emt 0:00:00]} Nf6 {[%emt 0:00:00]} 2. e5 {[%emt 0:00:00]} Nd5 {[%emt 0:00:00]} 3. d4 {[%emt 0:00:01]} d6 {[%emt 0:00:01]} 4. Nf3 {[%emt 0:00:00]} g6 {[%emt 0:00:01]} 5. exd6 cxd6 {[%emt 0:00:01]} 6. c4 {[%emt 0:00:04]} Nb6 {[%emt 0:00:01]} 7. Nc3 {[%emt 0:00:02]} Bg7 {[%emt 0:00:01]} 8. Be2 {[%emt 0:00:02]} O-O {[%emt 0:00:02]} 9. O-O {[%emt 0:00:02]} Bg4 {[%emt 0:00:09]} 10. b3 {[%emt 0:00:08]} Nc6 {[%emt 0:00:09]} 11. Be3 {[%emt 0:00:03]} d5 {[%emt 0:00:05]} 12. c5 {[%emt 0:00:06]} Nc8 {[%emt 0:00:01]} 13. h3 {[%emt 0:00:11]} Bxf3 {[%emt 0:00:03]} 14. Bxf3 {[%emt 0:00:01]} e6 {[%emt 0:00:01] B04: Alekhine's Defence: 4 Nf3} 15. Rb1 {[%emt 0:00:02]} N8e7 {[%emt 0:00:03]} 16. Bg4 $146 {[%emt 0:00:06]} ({Predecessor:} 16. Ne2 Nf5 17. Qd2 h5 18. Kh1 a5 19. a3 b5 20. g3 b4 21. a4 Qe7 22. Bg2 {½-½ (63) Zhao,C (2035)-Zeng,C (2549) China 2016}) 16... h5 {[%emt 0:00:05]} 17. Be2 {[%emt 0:00:01]} Nf5 {[%emt 0:00:03]} 18. Bd3 {[%emt 0:00:31]} Ncxd4 {[%emt 0:00:25]} 19. Ne2 {[%emt 0:00:09]} Nxe3 {[%emt 0:00:03]} 20. fxe3 {[%emt 0:00:02]} Nxe2+ {[%emt 0:00:22]} 21. Qxe2 {[%emt 0:00:01]} a5 {[%emt 0:00:04]} 22. Rbc1 {[%emt 0:00:05]} Rc8 {[%emt 0:00:05]} 23. a3 {[%emt 0:00:12]} Qg5 {[%emt 0:00:10]} 24. b4 {[%emt 0:00:08]} axb4 {[%emt 0:00:04]} 25. axb4 {[%emt 0:00:01]} Bh6 {[%emt 0:00:07]} 26. Rfe1 $19 {[%emt 0:00:09]} (26. Rce1 $17) 26... Qh4 {[%emt 0:00:06]} 27. Rc2 {[%emt 0:00:16]} Qxb4 {[%emt 0:00:09]} 28. Rec1 {[%emt 0:00:19]} d4 {[%emt 0:00:18]} 29. Rc4 {[%emt 0:00:01]} Qa5 {[%emt 0:00:05]} 30. Rxd4 {[%emt 0:00:05]} Rxc5 {[%emt 0:00:01]} 31. Rf1 {[%emt 0:00:16]} Re5 {[%emt 0:00:08]} 32. Rf3 {[%emt 0:00:12]} Qa1+ {[%emt 0:00:04]} 33. Kh2 {[%emt 0:00:01]} Rxe3 {[%emt 0:00:30]} 34. Rxe3 {[%emt 0:00:12]} Qxd4 {[%emt 0:00:03]} 35. Rf3 {[%emt 0:00:05]} Qd6+ {[%emt 0:00:03]} 36. g3 {[%emt 0:00:03]} Rd8 {[%emt 0:00:02]} 37. h4 {[%emt 0:00:02]} Qb4 {[%emt 0:00:21]} 38. Qc2 {[%emt 0:00:02]} Qd2+ {[%emt 0:00:04]} 39. Qxd2 {[%emt 0:00:03]} Bxd2 {[%emt 0:00:02]} 40. Kg2 {[%emt 0:00:01]} Bh6 {[%emt 0:00:05]} 41. Bb5 {[%emt 0:00:16]} b6 {[%emt 0:00:03]} 42. Rc3 {[%emt 0:00:04]} Bf8 {[%emt 0:00:03]} 43. Rc7 {[%emt 0:00:04]} Bc5 {[%emt 0:00:05]} 44. Rd7 {[%emt 0:00:11]} Ra8 {[%emt 0:00:02]} 45. Rd3 {[%emt 0:00:02]} Kg7 {[%emt 0:00:03]} 46. Kf3 {[%emt 0:00:00]} Ra5 {[%emt 0:00:02]} 47. Be8 {[%emt 0:00:02]} Ra8 {[%emt 0:00:02]} 48. Bc6 {[%emt 0:00:01]} Rc8 {[%emt 0:00:01]} 49. Bb5 {[%emt 0:00:01]} e5 {[%emt 0:00:03]} 50. Rd7 {[%emt 0:00:01]} Bd4 {[%emt 0:00:02]} 51. Ke4 {[%emt 0:00:01]} Rc5 {[%emt 0:00:04]} 52. Ba6 {[%emt 0:00:04]} Rc3 {[%emt 0:00:01]} 53. Bd3 {[%emt 0:00:05]} b5 {[%emt 0:00:02]} 54. Rb7 {[%emt 0:00:03]} Rc1 {[%emt 0:00:03]} 55. Rxb5 {[%emt 0:00:02]} Re1+ {[%emt 0:00:01]} 56. Kd5 {[%emt 0:00:02]} Re3 {[%emt 0:00:02]} 57. Bc4 {[%emt 0:00:01]} Rxg3 {[%emt 0:00:01]} 58. Rb7 {[%emt 0:00:01]} Rf3 {[%emt 0:00:01]} 59. Ke4 {[%emt 0:00:04]} Rf4+ {[%emt 0:00:02]} 60. Kd3 {[%emt 0:00:00]} Rf3+ {[%emt 0:00:03]} 61. Ke4 {[%emt 0:00:01]} Rf4+ {[%emt 0:00:01]} 62. Kd3 {[%emt 0:00:01]} Rf5 {[%emt 0:00:03]} 63. Bd5 {[%emt 0:00:01]} Bf2 {[%emt 0:00:03]} 64. Rb4 {[%emt 0:00:05]} Rf4 {[%emt 0:00:02]} 65. Rxf4 {[%emt 0:00:05]} exf4 {[%emt 0:00:01]} 66. Ke4 {[%emt 0:00:01]} Bxh4 {[%emt 0:00:02]} 67. Kxf4 {[%emt 0:00:01]} Be7 {[%emt 0:00:02]} 68. Bc4 {[%emt 0:00:01]} Bd6+ {[%emt 0:00:01]} 69. Ke4 {[%emt 0:00:01]} f6 {[%emt 0:00:01]} 70. Be6 {[%emt 0:00:02]} Kh6 {[%emt 0:00:02]} 71. Bf7 {[%emt 0:00:01]} f5+ {[%emt 0:00:02]} 72. Kf3 {[%emt 0:00:02]} g5 {[%emt 0:00:02]} 73. Be6 {[%emt 0:00:01]} Kg6 {[%emt 0:00:02]} 74. Bd7 {[%emt 0:00:01]} g4+ {[%emt 0:00:01]} 75. Ke3 {[%emt 0:00:01]} Kg5 {[%emt 0:00:01]} 76. Kf2 {[%emt 0:00:03]} h4 {[%emt 0:00:02]} 77. Kg2 {[%emt 0:00:01]} h3+ {[%emt 0:00:01]} 78. Kf2 {[%emt 0:00:00]} Bc5+ {[%emt 0:00:02]} 79. Kg3 {[%emt 0:00:01]} f4+ {[%emt 0:00:01]} 80. Kh2 {[%emt 0:00:01]} Kh4 {[%emt 0:00:03]} 81. Bc6 {[%emt 0:00:03]} g3+ {[%emt 0:00:03]} 82. Kh1 {[%emt 0:00:01]} g2+ {[%emt 0:00:01]} 0-1

[Event "RUS-ch Blitz Women 2018"]
[Site "Sochi"]
[Date "2018.10.07"]
[Round "19"]
[White "Voit, Daria"]
[Black "Bivol, Alina"]
[Result "0-1"]
[ECO "E61"]
[WhiteElo "2352"]
[BlackElo "2403"]
[Annotator "NA"]
[PlyCount "98"]
[EventDate "2018.10.07"]
[EventType "swiss"]
[EventCountry "RUS"]
[SourceTitle "playchess.com"]
[Source "ChessBase"]
[SourceQuality "1"]
[TimeControl "180+2"]

1. Nf3 {[%emt 0:00:00]} Nf6 {[%emt 0:00:00]} 2. c4 {[%emt 0:00:00]} g6 {[%emt 0:00:00]} 3. d4 {[%emt 0:00:00]} d6 {[%emt 0:00:00]} 4. Nc3 {[%emt 0:00:02]} Bg7 {[%emt 0:00:01]} 5. Bg5 {[%emt 0:00:01]} O-O {[%emt 0:00:04]} 6. e3 {[%emt 0:00:01]} c5 {[%emt 0:00:09] LiveBook: 449 Games} 7. Be2 {[%emt 0:00:19]} Qa5 {[%emt 0:00:09]} 8. O-O {[%emt 0:00:07]} Bg4 {[%emt 0:00:14] E61: King's Indian: Early deviations for White, including Smyslov System} 9. Nd2 $146 {[%emt 0:00:15]} ({Predecessor:} 9. Bxf6 exf6 10. h3 Be6 11. Nb5 Rd8 12. Qd2 Qxd2 13. Nxd2 a6 14. Nc7 Ra7 15. Ne4 b6 16. Nxe6 fxe6 {1-0 (40) Lechtynsky,J (2425)-Znamenacek,K (2325) Pribram 1997}) 9... Bxe2 {[%emt 0:00:10]} 10. Qxe2 {[%emt 0:00:01]} cxd4 {[%emt 0:00:02]} 11. exd4 {[%emt 0:00:02]} Qxg5 {[%emt 0:00:01]} 12. Nf3 {[%emt 0:00:06]} Qf5 {[%emt 0:00:10]} 13. Qxe7 {[%emt 0:00:03]} Qd7 {[%emt 0:00:02]} 14. Qe3 {[%emt 0:00:04]} Nc6 {[%emt 0:00:03]} 15. h3 {[%emt 0:00:08]} Rfe8 {[%emt 0:00:02]} 16. Qd2 {[%emt 0:00:01]} Ne4 {[%emt 0:00:04]} 17. Qd3 {[%emt 0:00:03]} Nxc3 {[%emt 0:00:19]} 18. bxc3 {[%emt 0:00:01]} b6 {[%emt 0:00:04]} 19. Qc2 {[%emt 0:00:06]} Na5 {[%emt 0:00:02]} 20. Nd2 {[%emt 0:00:04]} Rac8 {[%emt 0:00:04]} 21. Qd3 $19 {[%emt 0:00:07]} Qf5 {[%emt 0:00:03]} 22. Qxf5 {[%emt 0:00:05]} gxf5 {[%emt 0:00:01]} 23. Rfe1 {[%emt 0:00:02]} Kf8 {[%emt 0:00:08]} 24. g3 {[%emt 0:00:11]} Nxc4 {[%emt 0:00:02]} 25. Nf3 {[%emt 0:00:02]} Bf6 {[%emt 0:00:14]} 26. Kg2 {[%emt 0:00:04]} Na3 {[%emt 0:00:02]} 27. Rxe8+ {[%emt 0:00:08]} Kxe8 {[%emt 0:00:04]} 28. Re1+ {[%emt 0:00:04]} Kd7 {[%emt 0:00:03]} 29. Re3 {[%emt 0:00:02]} Nb5 {[%emt 0:00:04]} 30. g4 {[%emt 0:00:15]} fxg4 {[%emt 0:00:04]} 31. hxg4 {[%emt 0:00:02]} Rxc3 {[%emt 0:00:07]} 32. Re4 {[%emt 0:00:01]} Rd3 {[%emt 0:00:12]} 33. Rf4 {[%emt 0:00:02]} Ke7 {[%emt 0:00:20]} 34. g5 {[%emt 0:00:09]} Bxd4 {[%emt 0:00:04]} 35. Nh4 {[%emt 0:00:01]} Be5 {[%emt 0:00:07]} 36. Rb4 {[%emt 0:00:10]} Nd4 {[%emt 0:00:08]} 37. Rc4 {[%emt 0:00:06]} Kd7 {[%emt 0:00:06]} 38. a4 {[%emt 0:00:11]} a6 {[%emt 0:00:03]} 39. Rc1 {[%emt 0:00:02]} b5 {[%emt 0:00:01]} 40. axb5 {[%emt 0:00:01]} axb5 {[%emt 0:00:02]} 41. Ra1 {[%emt 0:00:11]} b4 {[%emt 0:00:03]} 42. Rf1 {[%emt 0:00:08]} Rd2 {[%emt 0:00:11]} 43. Kh3 {[%emt 0:00:02]} b3 {[%emt 0:00:03]} 44. f4 {[%emt 0:00:02]} Bg7 {[%emt 0:00:01]} 45. f5 {[%emt 0:00:05]} Be5 {[%emt 0:00:03]} 46. Kg4 {[%emt 0:00:07]} b2 {[%emt 0:00:02]} 47. Kh5 {[%emt 0:00:05]} Rc2 {[%emt 0:00:04]} 48. Rb1 {[%emt 0:00:03]} Nb3 {[%emt 0:00:02]} 49. Nf3 {[%emt 0:00:01]} Bc3 {[%emt 0:00:02]} 0-1